Workbook

Sheet Diagram
A1: Hysteresi beregninger for LM339 inverting comparator | M1: Indsæt fra 0 til 100 i celle H2 rødt tal
A2: Juster potentiometer P1 i % for Delta temperatur: | H2: 0.5 | I2: =+New!J2/1000 -> 1.1 | J2: M Ohm | M2: Aflæs værdien på potentiometer P1
M3: i celle I2 sort tal
M6: Udarbejdet af Jørgen Walter ©
M8: www.walter-lystfisker.dk
M9: COPYRIGHT © 2014
A28: Her er resultatet for "Proto typen" med standard Ohm værdier fra E96 rækken.
M33: Udarbejdet af Jørgen Walter ©
M34: j@walter-lystfisker.dk
M35: www.walter-lystfisker.dk
M36: COPYRIGHT © 2014
A56: Delta temperaturen for denne indstilling er 5,8 ºC omkring den valgte røgtemperatur.
M61: Udarbejdet af Jørgen Walter ©
M62: j@walter-lystfisker.dk
M63: www.walter-lystfisker.dk
M64: COPYRIGHT © 2014
A84: Delta temperaturen for denne indstilling er 3,3 ºC omkring den valgte røgtemperatur.
M90: Udarbejdet af Jørgen Walter ©
M91: j@walter-lystfisker.dk
M92: www.walter-lystfisker.dk
M93: COPYRIGHT © 2014
A112: Delta temperaturen for denne indstilling er 2,1 ºC omkring den valgte røgtemperatur.
M117: Udarbejdet af Jørgen Walter ©
M118: j@walter-lystfisker.dk
M119: www.walter-lystfisker.dk
M120: COPYRIGHT © 2014
A140: Delta temperaturen for denne indstilling er 1,6 ºC omkring den valgte røgtemperatur.
M146: Udarbejdet af Jørgen Walter ©
M147: j@walter-lystfisker.dk
M148: www.walter-lystfisker.dk
M149: COPYRIGHT © 2014
A170: Delta temperaturen for denne indstilling er 1,3 ºC omkring den valgte røgtemperatur.
B173: Regnearket er Password beskyttet. Makro knapperne udskriver Diagrammerne. Regnearket har 4 ark: "Beregning" - "New" - "Tabel" disse er skjulte
B174: Arket "Diagram", som er synligt", viser resultatet af potentiometerets P1 indsrilling. Regnearket er til min Temperature Controller, som ses herunder
A178: walter | M178: walter | O178: Reg.No.1259

Sheet Beregning
A1: Hysteresi beregninger for LM339 inverting comparator
A2: Juster potentiometer P1 i % for Delta temperatur: | H2: =+Diagram!H2 -> 0.5 | I2: =+New!J2 -> 1100 | J2: K Ohm
A3: Data
A4: Vcc | B4: 15 | C4: V | D4: Kalkuleret værdi | F4: Volt | G4: Giver i °C | H4: Standard værdier 1% | I4: Volt | J4: Giver i °C
A5: R1 | B5: =+D5 -> 125 | C5: K Ohm | D5: =+New!F4 -> 125 | F5: =+($B$4*B6*(B5+B7))/((B5*B6)+(B5*B7)+(B6*B7)) -> 8.782894737 | G5: =+F5*10 -> 87.82894737 | H5: =+New!G4 -> 124 | I5: =+($B$4*H6*(H5+H7))/((H5*H6)+(H5*H7)+(H6*H7)) -> 8.773909717 | J5: =+ROUND(I5*10,0) -> 88
A6: R2 | B6: =+D6 -> 166.6666667 | C6: K Ohm | D6: =+New!F5 -> 166.6666667 | F6: =+($B$4*B6*B7)/((B5*B6)+(B5*B7)+(B6*B7)) -> 8.289473684 | G6: =+F6*10 -> 82.89473684 | H6: =+New!G5 -> 165 | I6: =+($B$4*H6*H7)/((H5*H6)+(H5*H7)+(H6*H7)) -> 8.284716909 | J6: =+ROUND(I6*10,0) -> 83
A7: R3 | B7: =+$D$7 -> 2100 | C7: K Ohm | D7: =+New!D6 -> 2100 | F7: =+F5-F6 -> 0.4934210526 | G7: =+G5-G6 -> 4.934210526 | H7: =+$D$7 -> 2100 | I7: =+I5-I6 -> 0.489192808 | J7: =+ROUND(I7*10,0) -> 5
L10: Udarbejdet af Jørgen Walter ©
A11: R1 | B11: =+D11 -> 142.8571429 | C11: K Ohm | D11: =+New!F15 -> 142.8571429 | F11: =+($B$4*B12*(B11+B13))/((B11*B12)+(B11*B13)+(B12*B13)) -> 7.746710526 | G11: =+F11*10 -> 77.46710526 | H11: =+New!G15 -> 140 | I11: =+($B$4*H12*(H11+H13))/((H11*H12)+(H11*H13)+(H12*H13)) -> 7.741935484 | J11: =+ROUND(I11*10,0) -> 77
A12: R2 | B12: =+D12 -> 142.8571429 | C12: K Ohm | D12: =+New!F16 -> 142.8571429 | F12: =+($B$4*B12*B13)/((B11*B12)+(B11*B13)+(B12*B13)) -> 7.253289474 | G12: =+F12*10 -> 72.53289474 | H12: =+New!G16 -> 140 | I12: =+($B$4*H12*H13)/((H11*H12)+(H11*H13)+(H12*H13)) -> 7.258064516 | J12: =+ROUND(I12*10,0) -> 73
A13: R3 | B13: =+$D$7 -> 2100 | C13: K Ohm | D13: =+$D$7 -> 2100 | F13: =+F11-F12 -> 0.4934210526 | G13: =+G11-G12 -> 4.934210526 | H13: =+$D$7 -> 2100 | I13: =+I11-I12 -> 0.4838709677 | J13: =+ROUND(I13*10,0) -> 5
L14: www.walter-lystfisker.dk
L16: COPYRIGHT © 2014
A17: R1 | B17: =+D17 -> 166.6666667 | C17: K Ohm | D17: =+New!F26 -> 166.6666667 | F17: =+($B$4*B18*(B17+B19))/((B17*B18)+(B17*B19)+(B18*B19)) -> 6.710526316 | G17: =+F17*10 -> 67.10526316 | H17: =+New!G26 -> 165 | I17: =+($B$4*H18*(H17+H19))/((H17*H18)+(H17*H19)+(H18*H19)) -> 6.715283091 | J17: =+ROUND(I17*10,0) -> 67
A18: R2 | B18: =+D18 -> 125 | C18: K Ohm | D18: =+New!F27 -> 125 | F18: =+($B$4*B18*B19)/((B17*B18)+(B17*B19)+(B18*B19)) -> 6.217105263 | G18: =+F18*10 -> 62.17105263 | H18: =+New!G27 -> 124 | I18: =+($B$4*H18*H19)/((H17*H18)+(H17*H19)+(H18*H19)) -> 6.226090283 | J18: =+ROUND(I18*10,0) -> 62
A19: R3 | B19: =+$D$7 -> 2100 | C19: K Ohm | D19: =+$D$7 -> 2100 | F19: =+F17-F18 -> 0.4934210526 | G19: =+G17-G18 -> 4.934210526 | H19: =+$D$7 -> 2100 | I19: =+I17-I18 -> 0.489192808 | J19: =+ROUND(I19*10,0) -> 5
A23: R1 | B23: =+D23 -> 200 | C23: K Ohm | D23: =+New!F37 -> 200 | F23: =+($B$4*B24*(B23+B25))/((B23*B24)+(B23*B25)+(B24*B25)) -> 5.674342105 | G23: =+F23*10 -> 56.74342105 | H23: =+New!G37 -> 200 | I23: =+($B$4*H24*(H23+H25))/((H23*H24)+(H23*H25)+(H24*H25)) -> 5.638930163 | J23: =+ROUND(I23*10,0) -> 56
A24: R2 | B24: =+D24 -> 111.1111111 | C24: K Ohm | D24: =+New!F38 -> 111.1111111 | F24: =+($B$4*B24*B25)/((B23*B24)+(B23*B25)+(B24*B25)) -> 5.180921053 | G24: =+F24*10 -> 51.80921053 | H24: =+New!G38 -> 110 | I24: =+($B$4*H24*H25)/((H23*H24)+(H23*H25)+(H24*H25)) -> 5.14858841 | J24: =+ROUND(I24*10,0) -> 51
A25: R3 | B25: =+$D$7 -> 2100 | C25: K Ohm | D25: =+$D$7 -> 2100 | F25: =+F23-F24 -> 0.4934210526 | G25: =+G23-G24 -> 4.934210526 | H25: =+$D$7 -> 2100 | I25: =+I23-I24 -> 0.4903417533 | J25: =+ROUND(I25*10,0) -> 5
A29: R1 | B29: =+D29 -> 250 | C29: K Ohm | D29: =+New!F48 -> 250 | F29: =+($B$4*B30*(B29+B31))/((B29*B30)+(B29*B31)+(B30*B31)) -> 4.638157895 | G29: =+F29*10 -> 46.38157895 | H29: =+New!G48 -> 249 | I29: =+($B$4*H30*(H29+H31))/((H29*H30)+(H29*H31)+(H30*H31)) -> 4.649643705 | J29: =+ROUND(I29*10,0) -> 46
A30: R2 | B30: =+D30 -> 100 | C30: K Ohm | D30: =+New!F49 -> 100 | F30: =+($B$4*B30*B31)/((B29*B30)+(B29*B31)+(B30*B31)) -> 4.144736842 | G30: =+F30*10 -> 41.44736842 | H30: =+New!G49 -> 100 | I30: =+($B$4*H30*H31)/((H29*H30)+(H29*H31)+(H30*H31)) -> 4.156769596 | J30: =+ROUND(I30*10,0) -> 42
A31: R3 | B31: =+$D$7 -> 2100 | C31: K Ohm | D31: =+$D$7 -> 2100 | F31: =+F29-F30 -> 0.4934210526 | G31: =+G29-G30 -> 4.934210526 | H31: =+$D$7 -> 2100 | I31: =+I29-I30 -> 0.4928741093 | J31: =+ROUND(I31*10,0) -> 5
A35: R1 | B35: =+D35 -> 333.3333333 | C35: K Ohm | D35: =+New!F59 -> 333.3333333 | F35: =+($B$4*B36*(B35+B37))/((B35*B36)+(B35*B37)+(B36*B37)) -> 3.601973684 | G35: =+F35*10 -> 36.01973684 | H35: =+New!G59 -> 332 | I35: =+($B$4*H36*(H35+H37))/((H35*H36)+(H35*H37)+(H36*H37)) -> 3.611177903 | J35: =+ROUND(I35*10,0) -> 36
A36: R2 | B36: =+D36 -> 90.90909091 | C36: K Ohm | D36: =+New!F60 -> 90.90909091 | F36: =+($B$4*B36*B37)/((B35*B36)+(B35*B37)+(B36*B37)) -> 3.108552632 | G36: =+F36*10 -> 31.08552632 | H36: =+New!G60 -> 90.9 | I36: =+($B$4*H36*H37)/((H35*H36)+(H35*H37)+(H36*H37)) -> 3.118204604 | J36: =+ROUND(I36*10,0) -> 31
A37: R3 | B37: =+$D$7 -> 2100 | C37: K Ohm | D37: =+$D$7 -> 2100 | F37: =+F35-F36 -> 0.4934210526 | G37: =+G35-G36 -> 4.934210526 | H37: =+$D$7 -> 2100 | I37: =+I35-I36 -> 0.4929732993 | J37: =+ROUND(I37*10,0) -> 5
A43: walter | N43: Reg.No.1259

Sheet New
A1: Hysteresi beregninger for LM339 inverting comparator
A2: Juster potentiometer P1 i % for Delta temperatur: | I2: =+Beregning!H2 -> 0.5 | J2: =G7*I2 -> 1100 | K2: K Ohm
A3: Data given | D3: Find data | E3: Equation | F3: Kalkuleret værdier | G3: Standard værdier | I3: I alt | K3: Giver i °C | M3: Range 6
A4: Vcc | B4: 15 | C4: Volt | D4: R1 | E4: n * R3 | F4: =+F13*B6 -> 125 | G4: 124 | H4: K Ohm | L4: 80 ºC | M4: P1 Adjust. | N4: Relay Off Volt | O4: Relay Off Temp | P4: Relay On Volt | Q4: Relay On Temp | R4: Delta Temp
A5: Rload | B5: 100 | C5: K Ohm | D5: R2 | E5: (R1//R3) / ( (Vcc/VA1) -1 ) | F5: =+F12/((B4/B9)-1) -> 166.6666667 | G5: 165 | H5: K Ohm | M5: 0 | N5: 8.3 | O5: =+N5*10 -> 83 | P5: 7.7 | Q5: =+P5*10 -> 77 | R5: =+O5-Q5 -> 6
A6: R3 | B6: 1000 | C6: K Ohm | D6: =+B6+$J$2 -> 2100 | M6: 0.25 | N6: 8.25 | O6: 82.5 | P6: 7.89 | Q6: =+P6*10 -> 78.9 | R6: =+O6-Q6 -> 3.6
A7: Rpull up | B7: 3 | C7: K Ohm | E7: Potentiometer P1 | G7: 2200 | H7: K Ohm | I7: =+G7/1000 -> 2.2 | J7: M Ohm | M7: 0.5 | N7: 8.2 | O7: 82 | P7: 7.99 | Q7: =+P7*10 -> 79.9 | R7: =+O7-Q7 -> 2.1
A8: Rload | B8: 100 | C8: K Ohm | M8: 0.75 | N8: 8.2 | O8: 82 | P8: 8 | Q8: =+P8*10 -> 80 | R8: =+O8-Q8 -> 2
A9: VA1 | B9: 9 | C9: Volt | D9: =+B9*10 -> 90 | E9: =CONCATENATE($E$14,K9,$G$14) -> Slukker ved 87,74 ºC | F9: Vcc*R2*(R1+R3) / (R1*R2+R1*R3+R2*R3) | I9: =+(B4*G5*(G4+D6))/(G4*G5+G4*D6+G5*D6) -> 8.773909717 | K9: =ROUND(+I9*10,2) -> 87.74 | M9: 1 | N9: 8.2 | O9: 82 | P9: 8.04 | Q9: =+P9*10 -> 80.4 | R9: =+O9-Q9 -> 1.6
A10: VA2 | B10: 8 | C10: Volt | D10: =+B10*10 -> 80 | E10: =CONCATENATE($F$14,K10,$G$14) -> Tænder ved 82,85 ºC | F10: Vcc*R2*R3 / (R1*R2+R1*R3+R2*R3) | I10: =+(B4*G5*D6)/(G4*G5+G4*D6+G5*D6) -> 8.284716909 | K10: =ROUND(+I10*10,2) -> 82.85 | M10: Average | N10: =AVERAGE(N5:N9) -> 8.23 | O10: 82.3 | P10: =AVERAGE(P5:P9) -> 7.924 | Q10: =AVERAGE(Q5:Q9) -> 79.24 | R10: =+(N10*10)-(P10*10) -> 3.06 | T10: Udarbejdet af Jørgen Walter ©
A11: Delta VA | B11: =+B9-B10 -> 1 | C11: Volt | D11: =+B11*10 -> 10 | E11: =CONCATENATE($H$14,K11,$G$14) -> Delta 4,89 ºC | F11: Delta VA | I11: =+I9-I10 -> 0.489192808 | K11: =ROUND(+I11*10,2) -> 4.89
A12: Range 6 | D12: R1 // R3 | E12: (R1 * R3) / ( (R1 + R3) | F12: =+(F4*B6)/(F4+B6) -> 111.1111111 | H12: K Ohm | M12: Fan Volt | N12: 5.55 | O12: Min | P12: 5.6 | Q12: Max | R12: =+P12-N12 -> 0.05
D13: n = | E13: delta VA / VA2 | F13: =+B11/B10 -> 0.125
E14: Slukker ved | F14: Tænder ved | G14: ºC | H14: Delta | M14: Range 5 | T14: www.walter-lystfisker.dk
A15: Vcc | B15: =+$B$4 -> 15 | C15: Volt | D15: R1 | E15: n * R3 | F15: =+F24*B17 -> 142.8571429 | G15: 140 | H15: K Ohm | L15: 70 ºC | M15: P1 Adjust. | N15: Relay Off Volt | O15: Relay Off Temp | P15: Relay On Volt | Q15: Relay On Temp | R15: Delta Temp
A16: Rload | B16: =+$B$5 -> 100 | C16: K Ohm | D16: R2 | E16: (R1//R3) / ( (Vcc/VA1) -1 ) | F16: =+F23/((B15/B20)-1) -> 142.8571429 | G16: 140 | H16: K Ohm | M16: 0 | N16: 7.35 | O16: =+ROUND(N16,1)*10 -> 74 | P16: 6.78 | Q16: =+ROUND(P16,1)*10 -> 68 | R16: =+(N16*10)-(P16*10) -> 5.7 | T16: COPYRIGHT © 2014
A17: R3 | B17: =+$B$6 -> 1000 | C17: K Ohm | D17: =+B17+$J$2 -> 2100 | M17: 0.25 | N17: 7.27 | O17: =+ROUND(N17,1)*10 -> 73 | P17: 6.95 | Q17: =+ROUND(P17,1)*10 -> 70 | R17: 3.2
A18: Rpull up | B18: =+$B$7 -> 3 | C18: K Ohm | M18: 0.5 | N18: 7.23 | O18: =+ROUND(N18,1)*10 -> 72 | P18: 7 | Q18: =+ROUND(P18,1)*10 -> 70 | R18: 2.3
A19: Rload | B19: =+B8 -> 100 | C19: K Ohm | M19: 0.75 | N19: 7.21 | O19: =+ROUND(N19,1)*10 -> 72 | P19: 7.05 | Q19: =+ROUND(P19,1)*10 -> 71 | R19: 1.6
A20: VA1 | B20: =+B9-1 -> 8 | C20: Volt | D20: =+B20*10 -> 80 | E20: =CONCATENATE($E$14,K20,$G$14) -> Slukker ved 77,42 ºC | F20: Vcc*R2*(R1+R3) / (R1*R2+R1*R3+R2*R3) | I20: =+(B15*G16*(G15+D17))/(G15*G16+G15*D17+G16*D17) -> 7.741935484 | K20: =ROUND(+I20*10,2) -> 77.42 | M20: 1 | N20: 7.2 | O20: =+ROUND(N20,1)*10 -> 72 | P20: 7.06 | Q20: =+ROUND(P20,1)*10 -> 71 | R20: 1.4
A21: VA2 | B21: =+B10-1 -> 7 | C21: Volt | D21: =+B21*10 -> 70 | E21: =CONCATENATE($F$14,K21,$G$14) -> Tænder ved 72,58 ºC | F21: Vcc*R2*R3 / (R1*R2+R1*R3+R2*R3) | I21: =+(B15*G16*D17)/(G15*G16+G15*D17+G16*D17) -> 7.258064516 | K21: =ROUND(+I21*10,2) -> 72.58 | M21: Average | N21: =AVERAGE(N16:N20) -> 7.252 | O21: =AVERAGE(O16:O20) -> 72.6 | P21: =AVERAGE(P16:P20) -> 6.968 | Q21: =AVERAGE(Q16:Q20) -> 70 | R21: 2.84
A22: Delta VA | B22: =+B20-B21 -> 1 | C22: Volt | D22: =+B22*10 -> 10 | E22: =CONCATENATE($H$14,K22,$G$14) -> Delta 4,84 ºC | F22: Delta VA | I22: =+I20-I21 -> 0.4838709677 | K22: =ROUND(+I22*10,2) -> 4.84
A23: Range 5 | D23: R1 // R3 | E23: (R1 * R3) / ( (R1 + R3) | F23: =+(F15*B17)/(F15+B17) -> 125 | H23: K Ohm | M23: Fan Volt | N23: 5.8 | O23: Min | P23: 5.9 | Q23: Max | R23: =+P23-N23 -> 0.1
D24: n = | E24: delta VA / VA2 | F24: =+B22/B21 -> 0.1428571429
M25: Range 4
A26: Vcc | B26: =+$B$4 -> 15 | C26: Volt | D26: R1 | E26: n * R3 | F26: =+F35*B28 -> 166.6666667 | G26: 165 | H26: K Ohm | L26: 60 ºC | M26: P1 Adjust. | N26: Relay Off Volt | O26: Relay Off Temp | P26: Relay On Volt | Q26: Relay On Temp | R26: Delta Temp
A27: Rload | B27: =+$B$5 -> 100 | C27: K Ohm | D27: R2 | E27: (R1//R3) / ( (Vcc/VA1) -1 ) | F27: =+F34/((B26/B31)-1) -> 125 | G27: 124 | H27: K Ohm | M27: 0 | N27: 6.42 | O27: =+ROUND(N27,1)*10 -> 64 | P27: 5.84 | Q27: =+ROUND(P27,1)*10 -> 58 | R27: =+(N27*10)-(P27*10) -> 5.8
A28: R3 | B28: =+$B$6 -> 1000 | C28: K Ohm | D28: =+B28+$J$2 -> 2100 | M28: 0.25 | N28: 6.3 | O28: =+ROUND(N28,1)*10 -> 63 | P28: 5.97 | Q28: =+ROUND(P28,1)*10 -> 60 | R28: 3.3
A29: Rpull up | B29: =+$B$7 -> 3 | C29: K Ohm | M29: 0.5 | N29: 6.25 | O29: =+ROUND(N29,1)*10 -> 63 | P29: 6.03 | Q29: =+ROUND(P29,1)*10 -> 60 | R29: 2.2
A30: Rload | B30: =+B19 -> 100 | C30: K Ohm | M30: 0.75 | N30: 6.23 | O30: =+ROUND(N30,1)*10 -> 62 | P30: 6.06 | Q30: =+ROUND(P30,1)*10 -> 61 | R30: 1.7
A31: VA1 | B31: =+B20-1 -> 7 | C31: Volt | D31: =+B31*10 -> 70 | E31: =CONCATENATE($E$14,K31,$G$14) -> Slukker ved 67,15 ºC | F31: Vcc*R2*(R1+R3) / (R1*R2+R1*R3+R2*R3) | I31: =+(B26*G27*(G26+D28))/(G26*G27+G26*D28+G27*D28) -> 6.715283091 | K31: =ROUND(+I31*10,2) -> 67.15 | M31: 1 | N31: 6.2 | O31: =+ROUND(N31,1)*10 -> 62 | P31: 6.08 | Q31: =+ROUND(P31,1)*10 -> 61 | R31: 1.2
A32: VA2 | B32: =+B21-1 -> 6 | C32: Volt | D32: =+B32*10 -> 60 | E32: =CONCATENATE($F$14,K32,$G$14) -> Tænder ved 62,26 ºC | F32: Vcc*R2*R3 / (R1*R2+R1*R3+R2*R3) | I32: =+(B26*G27*D28)/(G26*G27+G26*D28+G27*D28) -> 6.226090283 | K32: =ROUND(+I32*10,2) -> 62.26 | M32: Average | N32: =AVERAGE(N27:N31) -> 6.28 | O32: =AVERAGE(O27:O31) -> 62.8 | P32: =AVERAGE(P27:P31) -> 5.996 | Q32: =AVERAGE(Q27:Q31) -> 60 | R32: 2.84
A33: Delta VA | B33: =+B31-B32 -> 1 | C33: Volt | D33: =+B33*10 -> 10 | E33: =CONCATENATE($H$14,K33,$G$14) -> Delta 4,89 ºC | F33: Delta VA | I33: =+I31-I32 -> 0.489192808 | K33: =ROUND(+I33*10,2) -> 4.89
A34: Range 4 | D34: R1 // R3 | E34: (R1 * R3) / ( (R1 + R3) | F34: =+(F26*B28)/(F26+B28) -> 142.8571429 | H34: K Ohm | M34: Fan Volt | N34: 6 | O34: Min | P34: 6.15 | Q34: Max | R34: =+P34-N34 -> 0.15
D35: n = | E35: delta VA / VA2 | F35: =+B33/B32 -> 0.1666666667
M36: Range 3
A37: Vcc | B37: =+$B$4 -> 15 | C37: Volt | D37: R1 | E37: n * R3 | F37: =+F46*B39 -> 200 | G37: 200 | H37: K Ohm | L37: 50 ºC | M37: P1 Adjust. | N37: Relay Off Volt | O37: Relay Off Temp | P37: Relay On Volt | Q37: Relay On Temp | R37: Delta Temp
A38: Rload | B38: =+$B$5 -> 100 | C38: K Ohm | D38: R2 | E38: (R1//R3) / ( (Vcc/VA1) -1 ) | F38: =+F45/((B37/B42)-1) -> 111.1111111 | G38: 110 | H38: K Ohm | M38: 0 | N38: 5.4 | O38: =+ROUND(N38,1)*10 -> 54 | P38: 4.83 | Q38: =+ROUND(P38,1)*10 -> 48 | R38: =+(N38*10)-(P38*10) -> 5.7
A39: R3 | B39: =+$B$6 -> 1000 | C39: K Ohm | D39: =+B39+$J$2 -> 2100 | M39: 0.25 | N39: 5.28 | O39: =+ROUND(N39,1)*10 -> 53 | P39: 4.95 | Q39: =+ROUND(P39,1)*10 -> 50 | R39: 3.3
A40: Rpull up | B40: =+$B$7 -> 3 | C40: K Ohm | M40: 0.5 | N40: 5.21 | O40: =+ROUND(N40,1)*10 -> 52 | P40: 5 | Q40: =+ROUND(P40,1)*10 -> 50 | R40: 2.1
A41: Rload | B41: =+B30 -> 100 | C41: K Ohm | M41: 0.75 | N41: 5.18 | O41: =+ROUND(N41,1)*10 -> 52 | P41: 5.03 | Q41: =+ROUND(P41,1)*10 -> 50 | R41: 1.5
A42: VA1 | B42: =+B31-1 -> 6 | C42: Volt | D42: =+B42*10 -> 60 | E42: =CONCATENATE($E$14,K42,$G$14) -> Slukker ved 56,39 ºC | F42: Vcc*R2*(R1+R3) / (R1*R2+R1*R3+R2*R3) | I42: =+(B37*G38*(G37+D39))/(G37*G38+G37*D39+G38*D39) -> 5.638930163 | K42: =ROUND(+I42*10,2) -> 56.39 | M42: 1 | N42: 5.17 | O42: =+ROUND(N42,1)*10 -> 52 | P42: 5.04 | Q42: =+ROUND(P42,1)*10 -> 50 | R42: 1.3
A43: VA2 | B43: =+B32-1 -> 5 | C43: Volt | D43: =+B43*10 -> 50 | E43: =CONCATENATE($F$14,K43,$G$14) -> Tænder ved 51,49 ºC | F43: Vcc*R2*R3 / (R1*R2+R1*R3+R2*R3) | I43: =+(B37*G38*D39)/(G37*G38+G37*D39+G38*D39) -> 5.14858841 | K43: =ROUND(+I43*10,2) -> 51.49 | M43: Average | N43: =AVERAGE(N38:N42) -> 5.248 | O43: =AVERAGE(O38:O42) -> 52.6 | P43: =AVERAGE(P38:P42) -> 4.97 | Q43: =AVERAGE(Q38:Q42) -> 49.6 | R43: 2.78
A44: Delta VA | B44: =+B42-B43 -> 1 | C44: Volt | D44: =+B44*10 -> 10 | E44: =CONCATENATE($H$14,K44,$G$14) -> Delta 4,9 ºC | F44: Delta VA | I44: =+I42-I43 -> 0.4903417533 | K44: =ROUND(+I44*10,2) -> 4.9
A45: Range 3 | D45: R1 // R3 | E45: (R1 * R3) / ( (R1 + R3) | F45: =+(F37*B39)/(F37+B39) -> 166.6666667 | H45: K Ohm | M45: Fan Volt | N45: 6.4 | O45: Min | P45: 6.6 | Q45: Max | R45: =+P45-N45 -> 0.2
D46: n = | E46: delta VA / VA2 | F46: =+B44/B43 -> 0.2
M47: Range 2
A48: Vcc | B48: =+$B$4 -> 15 | C48: Volt | D48: R1 | E48: n * R3 | F48: =+F57*B50 -> 250 | G48: 249 | H48: K Ohm | L48: 40 ºC | M48: P1 Adjust. | N48: Relay Off Volt | O48: Relay Off Temp | P48: Relay On Volt | Q48: Relay On Temp | R48: Delta Temp
A49: Rload | B49: =+$B$5 -> 100 | C49: K Ohm | D49: R2 | E49: (R1//R3) / ( (Vcc/VA1) -1 ) | F49: =+F56/((B48/B53)-1) -> 100 | G49: 100 | H49: K Ohm | M49: 0 | N49: 4.43 | O49: =+ROUND(N49,1)*10 -> 44 | P49: 3.85 | Q49: =+ROUND(P49,1)*10 -> 39 | R49: =+(N49*10)-(P49*10) -> 5.8
A50: R3 | B50: =+$B$6 -> 1000 | C50: K Ohm | D50: =+B50+$J$2 -> 2100 | M50: 0.25 | N50: 4.25 | O50: =+ROUND(N50,1)*10 -> 43 | P50: 3.93 | Q50: =+ROUND(P50,1)*10 -> 39 | R50: 3.2
A51: Rpull up | B51: =+$B$7 -> 3 | C51: K Ohm | M51: 0.5 | N51: 4.15 | O51: =+ROUND(N51,1)*10 -> 42 | P51: 3.97 | Q51: =+ROUND(P51,1)*10 -> 40 | R51: 1.8
A52: Rload | B52: =+B41 -> 100 | C52: K Ohm | M52: 0.75 | N52: 4.14 | O52: =+ROUND(N52,1)*10 -> 41 | P52: 3.99 | Q52: =+ROUND(P52,1)*10 -> 40 | R52: 1.5
A53: VA1 | B53: =+B42-1 -> 5 | C53: Volt | D53: =+B53*10 -> 50 | E53: =CONCATENATE($E$14,K53,$G$14) -> Slukker ved 46,5 ºC | F53: Vcc*R2*(R1+R3) / (R1*R2+R1*R3+R2*R3) | I53: =+(B48*G49*(G48+D50))/(G48*G49+G48*D50+G49*D50) -> 4.649643705 | K53: =ROUND(+I53*10,2) -> 46.5 | M53: 1 | N53: 4.12 | O53: =+ROUND(N53,1)*10 -> 41 | P53: 4 | Q53: =+ROUND(P53,1)*10 -> 40 | R53: 1.2
A54: VA2 | B54: =+B43-1 -> 4 | C54: Volt | D54: =+B54*10 -> 40 | E54: =CONCATENATE($F$14,K54,$G$14) -> Tænder ved 41,57 ºC | F54: Vcc*R2*R3 / (R1*R2+R1*R3+R2*R3) | I54: =+(B48*G49*D50)/(G48*G49+G48*D50+G49*D50) -> 4.156769596 | K54: =ROUND(+I54*10,2) -> 41.57 | M54: Average | N54: =AVERAGE(N49:N53) -> 4.218 | O54: =AVERAGE(O49:O53) -> 42.2 | P54: =AVERAGE(P49:P53) -> 3.948 | Q54: =AVERAGE(Q49:Q53) -> 39.6 | R54: 2.7
A55: Delta VA | B55: =+B53-B54 -> 1 | C55: Volt | D55: =+B55*10 -> 10 | E55: =CONCATENATE($H$14,K55,$G$14) -> Delta 4,93 ºC | F55: Delta VA | I55: =+I53-I54 -> 0.4928741093 | K55: =ROUND(+I55*10,2) -> 4.93
A56: Range 2 | D56: R1 // R3 | E56: (R1 * R3) / ( (R1 + R3) | F56: =+(F48*B50)/(F48+B50) -> 200 | H56: K Ohm | M56: Fan Volt | N56: 7.25 | O56: Min | P56: 9.3 | Q56: Max | R56: =+P56-N56 -> 2.05
D57: n = | E57: delta VA / VA2 | F57: =+B55/B54 -> 0.25
M58: Range 1
A59: Vcc | B59: =+$B$4 -> 15 | C59: Volt | D59: R1 | E59: n * R3 | F59: =+F68*B61 -> 333.3333333 | G59: 332 | H59: K Ohm | L59: 30 ºC | M59: P1 Adjust. | N59: Relay Off Volt | O59: Relay Off Temp | P59: Relay On Volt | Q59: Relay On Temp | R59: Delta Temp
A60: Rload | B60: =+$B$5 -> 100 | C60: K Ohm | D60: R2 | E60: (R1//R3) / ( (Vcc/VA1) -1 ) | F60: =+F67/((B59/B64)-1) -> 90.90909091 | G60: 90.9 | H60: K Ohm | M60: 0 | N60: 3.47 | O60: =+ROUND(N60,1)*10 -> 35 | P60: 2.91 | Q60: =+ROUND(P60,1)*10 -> 29 | R60: =+(N60*10)-(P60*10) -> 5.6
A61: R3 | B61: =+$B$6 -> 1000 | C61: K Ohm | D61: =+B61+$J$2 -> 2100 | M61: 0.25 | N61: 3.3 | O61: =+ROUND(N61,1)*10 -> 33 | P61: 2.98 | Q61: =+ROUND(P61,1)*10 -> 30 | R61: 3.2
A62: Rpull up | B62: =+$B$7 -> 3 | C62: K Ohm | M62: 0.5 | N62: 3.21 | O62: =+ROUND(N62,1)*10 -> 32 | P62: 3 | Q62: =+ROUND(P62,1)*10 -> 30 | R62: 2.1
A63: Rload | B63: =+B52 -> 100 | C63: K Ohm | M63: 0.75 | N63: 3.16 | O63: =+ROUND(N63,1)*10 -> 32 | P63: 3.01 | Q63: =+ROUND(P63,1)*10 -> 30 | R63: 1.5
A64: VA1 | B64: =+B53-1 -> 4 | C64: Volt | D64: =+B64*10 -> 40 | E64: =CONCATENATE($E$14,K64,$G$14) -> Slukker ved 36,11 ºC | F64: Vcc*R2*(R1+R3) / (R1*R2+R1*R3+R2*R3) | I64: =+(B59*G60*(G59+D61))/(G59*G60+G59*D61+G60*D61) -> 3.611177903 | K64: =ROUND(+I64*10,2) -> 36.11 | M64: 1 | N64: 3.13 | O64: =+ROUND(N64,1)*10 -> 31 | P64: 3.02 | Q64: =+ROUND(P64,1)*10 -> 30 | R64: 1.1
A65: VA2 | B65: =+B54-1 -> 3 | C65: Volt | D65: =+B65*10 -> 30 | E65: =CONCATENATE($F$14,K65,$G$14) -> Tænder ved 31,18 ºC | F65: Vcc*R2*R3 / (R1*R2+R1*R3+R2*R3) | I65: =+(B59*G60*D61)/(G59*G60+G59*D61+G60*D61) -> 3.118204604 | K65: =ROUND(+I65*10,2) -> 31.18 | M65: Average | N65: =AVERAGE(N60:N64) -> 3.254 | O65: =AVERAGE(O60:O64) -> 32.6 | P65: =AVERAGE(P60:P64) -> 2.984 | Q65: =AVERAGE(Q60:Q64) -> 29.8 | R65: 2.7
A66: Delta VA | B66: =+B64-B65 -> 1 | C66: Volt | D66: =+B66*10 -> 10 | E66: =CONCATENATE($H$14,K66,$G$14) -> Delta 4,93 ºC | F66: Delta VA | I66: =+I64-I65 -> 0.4929732993 | K66: =ROUND(+I66*10,2) -> 4.93
A67: Range 1 | D67: R1 // R3 | E67: (R1 * R3) / ( (R1 + R3) | F67: =+(F59*B61)/(F59+B61) -> 250 | H67: K Ohm | M67: Fan Volt | N67: 9.75 | O67: Min | P67: 10.6 | Q67: Max | R67: =+P67-N67 -> 0.85
D68: n = | E68: delta VA / VA2 | F68: =+B66/B65 -> 0.3333333333
M69: Start temp 24 ºC og 13 Volt på Fan
A72: walter | V72: Reg.No.1259

Sheet Tabel
A1: PC beregning
A2: =CONCATENATE(A12,B2,$A$19,C2,$A$20) -> Range 1: 31 - 36 °C | B2: =+Beregning!J36 -> 31 | C2: =+Beregning!J35 -> 36
A3: =CONCATENATE(A13,D3,$A$19,E3,$A$20) -> Range 2: 42 - 46 °C | D3: =+Beregning!J30 -> 42 | E3: =+Beregning!J29 -> 46
A4: =CONCATENATE(A14,F4,$A$19,G4,$A$20) -> Range 3: 51 - 56 °C | F4: =+Beregning!J24 -> 51 | G4: =+Beregning!J23 -> 56
A5: =CONCATENATE(A15,H5,$A$19,I5,$A$20) -> Range 4: 62 - 67 °C | H5: =+Beregning!J18 -> 62 | I5: =+Beregning!J17 -> 67
A6: =CONCATENATE(A16,J6,$A$19,K6,$A$20) -> Range 5: 73 - 77 °C | J6: =+Beregning!J12 -> 73 | K6: =+Beregning!J11 -> 77
A7: =CONCATENATE(A17,L7,$A$19,M7,$A$20) -> Range 6: 83 - 88 °C | L7: =+Beregning!J6 -> 83 | M7: =+Beregning!J5 -> 88
A8: =CONCATENATE(A18,B8,$A$19,M8,$A$20) -> Total Range: 31 - 88 °C | B8: =+B2 -> 31 | C8: =+C2 -> 36 | D8: =+D3 -> 42 | E8: =+E3 -> 46 | F8: =+F4 -> 51 | G8: =+G4 -> 56 | H8: =+H5 -> 62 | I8: =+I5 -> 67 | J8: =+J6 -> 73 | K8: =+K6 -> 77 | L8: =+L7 -> 83 | M8: =+M7 -> 88
A9: =CONCATENATE(A21,N9,$A$20) -> Delta temp: 5 °C | B9: 0 | C9: =+Beregning!J37 -> 5 | D9: 0 | E9: =+Beregning!J31 -> 5 | F9: 0 | G9: =+Beregning!J25 -> 5 | H9: 0 | I9: =+Beregning!J19 -> 5 | J9: 0 | K9: =+Beregning!J13 -> 5 | L9: 0 | M9: =+Beregning!J7 -> 5 | N9: =ROUND((+C9+E9+G9+I9+K9+M9)/6,1) -> 5
Q10: Udarbejdet af Jørgen Walter ©
A11: Range No. | B11: =+A2 -> Range 1: 31 - 36 °C | D11: =+A3 -> Range 2: 42 - 46 °C | F11: =+A4 -> Range 3: 51 - 56 °C | H11: =+A5 -> Range 4: 62 - 67 °C | J11: =+A6 -> Range 5: 73 - 77 °C | L11: =+A7 -> Range 6: 83 - 88 °C
A12: Range 1:
A13: Range 2:
A14: Range 3: | Q14: www.walter-lystfisker.dk
A15: Range 4:
A16: Range 5: | Q16: COPYRIGHT © 2014
A17: Range 6:
A18: Total Range:
A19: -
A20: °C
A21: Delta temp:
A22: Hard Ware Data
A23: P1 0%
A24: =CONCATENATE(A34,B24,$A$19,C24,$A$20) -> Range 1: 29 - 35 °C | B24: =+New!Q60 -> 29 | C24: =+New!O60 -> 35
A25: =CONCATENATE(A35,D25,$A$19,E25,$A$20) -> Range 2: 39 - 44 °C | D25: =+New!Q49 -> 39 | E25: =+New!O49 -> 44
A26: =CONCATENATE(A36,F26,$A$19,G26,$A$20) -> Range 3: 48 - 54 °C | F26: =+New!Q38 -> 48 | G26: =+New!O38 -> 54
A27: =CONCATENATE(A37,H27,$A$19,I27,$A$20) -> Range 4: 58 - 64 °C | H27: =+New!Q27 -> 58 | I27: =+New!O27 -> 64
A28: =CONCATENATE(A38,J28,$A$19,K28,$A$20) -> Range 5: 68 - 74 °C | J28: =+New!Q16 -> 68 | K28: =+New!O16 -> 74
A29: =CONCATENATE(A39,L29,$A$19,M29,$A$20) -> Range 6: 77 - 83 °C | L29: =+New!Q5 -> 77 | M29: =+New!O5 -> 83
A30: =CONCATENATE(A40,B30,$A$19,M30,$A$20) -> Total Range: 29 - 83 °C | B30: =+B24 -> 29 | C30: =+C24 -> 35 | D30: =+D25 -> 39 | E30: =+E25 -> 44 | F30: =+F26 -> 48 | G30: =+G26 -> 54 | H30: =+H27 -> 58 | I30: =+I27 -> 64 | J30: =+J28 -> 68 | K30: =+K28 -> 74 | L30: =+L29 -> 77 | M30: =+M29 -> 83
A31: =CONCATENATE(A43,N31,$A$20) -> Delta temp: 5,8 °C | B31: 0 | C31: =+New!R60 -> 5.6 | D31: 0 | E31: =+New!R49 -> 5.8 | F31: 0 | G31: =+New!R38 -> 5.7 | H31: 0 | I31: =+New!R27 -> 5.8 | J31: 0 | K31: =+New!R16 -> 5.7 | L31: 0 | M31: =+New!R5 -> 6 | N31: =ROUND((+C31+E31+G31+I31+K31+M31)/6,1) -> 5.8
A33: Range No. | B33: =+A24 -> Range 1: 29 - 35 °C | D33: =+A25 -> Range 2: 39 - 44 °C | F33: =+A26 -> Range 3: 48 - 54 °C | H33: =+A27 -> Range 4: 58 - 64 °C | J33: =+A28 -> Range 5: 68 - 74 °C | L33: =+A29 -> Range 6: 77 - 83 °C
A34: Range 1:
A35: Range 2:
A36: Range 3:
A37: Range 4:
A38: Range 5:
A39: Range 6:
A40: Total Range:
A41: -
A42: °C
A43: Delta temp:
A44: Hard Ware Data
A45: P1 25%
A46: =CONCATENATE(A56,B46,$A$19,C46,$A$20) -> Range 1: 30 - 33 °C | B46: =+New!Q61 -> 30 | C46: =+New!O61 -> 33
A47: =CONCATENATE(A57,D47,$A$19,E47,$A$20) -> Range 2: 39 - 43 °C | D47: =+New!Q50 -> 39 | E47: =+New!O50 -> 43
A48: =CONCATENATE(A58,F48,$A$19,G48,$A$20) -> Range 3: 50 - 53 °C | F48: =+New!Q39 -> 50 | G48: =+New!O39 -> 53
A49: =CONCATENATE(A59,H49,$A$19,I49,$A$20) -> Range 4: 60 - 63 °C | H49: =+New!Q28 -> 60 | I49: =+New!O28 -> 63
A50: =CONCATENATE(A60,J50,$A$19,K50,$A$20) -> Range 5: 70 - 73 °C | J50: =+New!Q17 -> 70 | K50: =+New!O17 -> 73
A51: =CONCATENATE(A61,L51,$A$19,M51,$A$20) -> Range 6: 78,9 - 82,5 °C | L51: =+New!Q6 -> 78.9 | M51: =+New!O6 -> 82.5
A52: =CONCATENATE(A62,B52,$A$19,M52,$A$20) -> Total Range: 30 - 82,5 °C | B52: =+B46 -> 30 | C52: =+C46 -> 33 | D52: =+D47 -> 39 | E52: =+E47 -> 43 | F52: =+F48 -> 50 | G52: =+G48 -> 53 | H52: =+H49 -> 60 | I52: =+I49 -> 63 | J52: =+J50 -> 70 | K52: =+K50 -> 73 | L52: =+L51 -> 78.9 | M52: =+M51 -> 82.5
A53: =CONCATENATE(A65,N53,$A$20) -> Delta temp: 3,3 °C | B53: 0 | C53: =+New!R61 -> 3.2 | D53: 0 | E53: =+New!R50 -> 3.2 | F53: 0 | G53: =+New!R39 -> 3.3 | H53: 0 | I53: =+New!R28 -> 3.3 | J53: 0 | K53: =+New!R17 -> 3.2 | L53: 0 | M53: =+New!R6 -> 3.6 | N53: =ROUND((+C53+E53+G53+I53+K53+M53)/6,1) -> 3.3
A55: Range No. | B55: =+A46 -> Range 1: 30 - 33 °C | D55: =+A47 -> Range 2: 39 - 43 °C | F55: =+A48 -> Range 3: 50 - 53 °C | H55: =+A49 -> Range 4: 60 - 63 °C | J55: =+A50 -> Range 5: 70 - 73 °C | L55: =+A51 -> Range 6: 78,9 - 82,5 °C
A56: Range 1:
A57: Range 2:
A58: Range 3:
A59: Range 4:
A60: Range 5:
A61: Range 6:
A62: Total Range:
A63: -
A64: °C
A65: Delta temp:
A66: Hard Ware Data
A67: P1 50%
A68: =CONCATENATE(A78,B68,$A$19,C68,$A$20) -> Range 1: 29 - 32 °C | B68: =+New!Q60 -> 29 | C68: =+New!O62 -> 32
A69: =CONCATENATE(A79,D69,$A$19,E69,$A$20) -> Range 2: 40 - 42 °C | D69: =+New!Q51 -> 40 | E69: =+New!O51 -> 42
A70: =CONCATENATE(A80,F70,$A$19,G70,$A$20) -> Range 3: 50 - 52 °C | F70: =+New!Q40 -> 50 | G70: =+New!O40 -> 52
A71: =CONCATENATE(A81,H71,$A$19,I71,$A$20) -> Range 4: 60 - 63 °C | H71: =+New!Q29 -> 60 | I71: =+New!O29 -> 63
A72: =CONCATENATE(A82,J72,$A$19,K72,$A$20) -> Range 5: 70 - 72 °C | J72: =+New!Q18 -> 70 | K72: =+New!O18 -> 72
A73: =CONCATENATE(A83,L73,$A$19,M73,$A$20) -> Range 6: 79,9 - 82 °C | L73: =+New!Q7 -> 79.9 | M73: =+New!O7 -> 82
A74: =CONCATENATE(A84,B74,$A$19,M74,$A$20) -> Total Range: 29 - 82 °C | B74: =+B68 -> 29 | C74: =+C68 -> 32 | D74: =+D69 -> 40 | E74: =+E69 -> 42 | F74: =+F70 -> 50 | G74: =+G70 -> 52 | H74: =+H71 -> 60 | I74: =+I71 -> 63 | J74: =+J72 -> 70 | K74: =+K72 -> 72 | L74: =+L73 -> 79.9 | M74: =+M73 -> 82
A75: =CONCATENATE(A87,N75,$A$20) -> Delta temp: 2,1 °C | B75: 0 | C75: =+New!R62 -> 2.1 | D75: 0 | E75: =+New!R51 -> 1.8 | F75: 0 | G75: =+New!R40 -> 2.1 | H75: 0 | I75: =+New!R29 -> 2.2 | J75: 0 | K75: =+New!R18 -> 2.3 | L75: 0 | M75: =+New!R7 -> 2.1 | N75: =ROUND((+C75+E75+G75+I75+K75+M75)/6,1) -> 2.1
A77: Range No. | B77: =+A68 -> Range 1: 29 - 32 °C | D77: =+A69 -> Range 2: 40 - 42 °C | F77: =+A70 -> Range 3: 50 - 52 °C | H77: =+A71 -> Range 4: 60 - 63 °C | J77: =+A72 -> Range 5: 70 - 72 °C | L77: =+A73 -> Range 6: 79,9 - 82 °C
A78: Range 1:
A79: Range 2:
A80: Range 3:
A81: Range 4:
A82: Range 5:
A83: Range 6:
A84: Total Range:
A85: -
A86: °C
A87: Delta temp:
A88: Hard Ware Data
A89: P1 75%
A90: =CONCATENATE(A100,B90,$A$19,C90,$A$20) -> Range 1: 30 - 32 °C | B90: =+New!Q63 -> 30 | C90: =+New!O63 -> 32
A91: =CONCATENATE(A101,D91,$A$19,E91,$A$20) -> Range 2: 40 - 41 °C | D91: =+New!Q52 -> 40 | E91: =+New!O52 -> 41
A92: =CONCATENATE(A102,F92,$A$19,G92,$A$20) -> Range 3: 50 - 52 °C | F92: =+New!Q41 -> 50 | G92: =+New!O41 -> 52
A93: =CONCATENATE(A103,H93,$A$19,I93,$A$20) -> Range 4: 61 - 62 °C | H93: =+New!Q30 -> 61 | I93: =+New!O30 -> 62
A94: =CONCATENATE(A104,J94,$A$19,K94,$A$20) -> Range 5: 71 - 72 °C | J94: =+New!Q19 -> 71 | K94: =+New!O19 -> 72
A95: =CONCATENATE(A105,L95,$A$19,M95,$A$20) -> Range 6: 80 - 82 °C | L95: =+New!Q8 -> 80 | M95: =+New!O8 -> 82
A96: =CONCATENATE(A106,B96,$A$19,M96,$A$20) -> Total Range: 30 - 82 °C | B96: =+B90 -> 30 | C96: =+C90 -> 32 | D96: =+D91 -> 40 | E96: =+E91 -> 41 | F96: =+F92 -> 50 | G96: =+G92 -> 52 | H96: =+H93 -> 61 | I96: =+I93 -> 62 | J96: =+J94 -> 71 | K96: =+K94 -> 72 | L96: =+L95 -> 80 | M96: =+M95 -> 82
A97: =CONCATENATE(A109,N97,$A$20) -> Delta temp: 1,6 °C | B97: 0 | C97: =+New!R63 -> 1.5 | D97: 0 | E97: =+New!R52 -> 1.5 | F97: 0 | G97: =+New!R41 -> 1.5 | H97: 0 | I97: =+New!R30 -> 1.7 | J97: 0 | K97: =+New!R19 -> 1.6 | L97: 0 | M97: =+New!R8 -> 2 | N97: =ROUND((+C97+E97+G97+I97+K97+M97)/6,1) -> 1.6
A99: Range No. | B99: =+A90 -> Range 1: 30 - 32 °C | D99: =+A91 -> Range 2: 40 - 41 °C | F99: =+A92 -> Range 3: 50 - 52 °C | H99: =+A93 -> Range 4: 61 - 62 °C | J99: =+A94 -> Range 5: 71 - 72 °C | L99: =+A95 -> Range 6: 80 - 82 °C
A100: Range 1:
A101: Range 2:
A102: Range 3:
A103: Range 4:
A104: Range 5:
A105: Range 6:
A106: Total Range:
A107: -
A108: °C
A109: Delta temp:
A110: Hard Ware Data
A111: P1 100%
A112: =CONCATENATE(A122,B112,$A$19,C112,$A$20) -> Range 1: 30 - 31 °C | B112: =+New!Q64 -> 30 | C112: =+New!O64 -> 31
A113: =CONCATENATE(A123,D113,$A$19,E113,$A$20) -> Range 2: 40 - 41 °C | D113: =+New!Q53 -> 40 | E113: =+New!O53 -> 41
A114: =CONCATENATE(A124,F114,$A$19,G114,$A$20) -> Range 3: 50 - 52 °C | F114: =+New!Q42 -> 50 | G114: =+New!O42 -> 52
A115: =CONCATENATE(A125,H115,$A$19,I115,$A$20) -> Range 4: 61 - 62 °C | H115: =+New!Q31 -> 61 | I115: =+New!O31 -> 62
A116: =CONCATENATE(A126,J116,$A$19,K116,$A$20) -> Range 5: 71 - 72 °C | J116: =+New!Q20 -> 71 | K116: =+New!O20 -> 72
A117: =CONCATENATE(A127,L117,$A$19,M117,$A$20) -> Range 6: 80,4 - 82 °C | L117: =+New!Q9 -> 80.4 | M117: =+New!O9 -> 82
A118: =CONCATENATE(A128,B118,$A$19,M118,$A$20) -> Total Range: 30 - 82 °C | B118: =+B112 -> 30 | C118: =+C112 -> 31 | D118: =+D113 -> 40 | E118: =+E113 -> 41 | F118: =+F114 -> 50 | G118: =+G114 -> 52 | H118: =+H115 -> 61 | I118: =+I115 -> 62 | J118: =+J116 -> 71 | K118: =+K116 -> 72 | L118: =+L117 -> 80.4 | M118: =+M117 -> 82
A119: =CONCATENATE(A131,N119,$A$20) -> Delta temp: 1,3 °C | B119: 0 | C119: =+New!R64 -> 1.1 | D119: 0 | E119: =+New!R53 -> 1.2 | F119: 0 | G119: =+New!R42 -> 1.3 | H119: 0 | I119: =+New!R31 -> 1.2 | J119: 0 | K119: =+New!R20 -> 1.4 | L119: 0 | M119: =+New!R9 -> 1.6 | N119: =ROUND((+C119+E119+G119+I119+K119+M119)/6,1) -> 1.3
A121: Range No. | B121: =+A112 -> Range 1: 30 - 31 °C | D121: =+A113 -> Range 2: 40 - 41 °C | F121: =+A114 -> Range 3: 50 - 52 °C | H121: =+A115 -> Range 4: 61 - 62 °C | J121: =+A116 -> Range 5: 71 - 72 °C | L121: =+A117 -> Range 6: 80,4 - 82 °C
A122: Range 1:
A123: Range 2:
A124: Range 3:
A125: Range 4:
A126: Range 5:
A127: Range 6:
A128: Total Range:
A129: -
A130: °C
A131: Delta temp:
A134: walter | S134: Reg.No.1259
